fUSD/lending_fUSD_20250612
["ID","MTS","AMOUNT","RATE_DAILY","PERIOD"]
[365470774,1749690646604,-645.09,0.00019178,2]
[365470775,1749690646613,-480.0,0.00019178,2]
[365470776,1749690646622,-513.84,0.00019178,2]
[365470777,1749690646631,-2281.21,0.00019178,2]
[365470778,1749690646640,-500.0,0.00019178,2]
[365470779,1749690646649,-2820.43,0.00019178,2]
[365470780,1749690646659,-490.0,0.00019178,2]
[365470781,1749690646668,-5713.9,0.00019178,2]
[365470782,1749690646677,-918.53,0.00019178,2]
[365470783,1749690646686,-150.0,0.00019178,2]
[365470784,1749690646695,-490.0,0.00019178,2]
[365470785,1749690646704,-490.0,0.00019178,2]
[365470786,1749690646713,-416.0,0.00019178,3]
[365470787,1749690646722,-490.0,0.00019178,2]
[365470788,1749690646731,-490.0,0.00019178,2]
[365470789,1749690646740,-647.02,0.00019178,2]
[365470790,1749690646749,-490.0,0.00019178,2]
[365470791,1749690646758,-1123.34,0.00019178,2]
[365470792,1749690646767,-1908.14,0.00019178,2]
[365470793,1749690646776,-3191.15,0.00019178,2]
[365470794,1749690646785,-480.0,0.00019178,2]
[365470795,1749690646794,-150.0,0.00019178,2]
[365470796,1749690646803,-490.0,0.00019178,2]
[365470797,1749690646812,-490.0,0.00019178,2]
[365470798,1749690646821,-490.0,0.00019178,2]
[365470799,1749690646830,-150.0,0.00019178,2]
[365470800,1749690646839,-666.95,0.00019178,2]
[365470801,1749690646848,-525.97221468,0.00019178,2]
[365470802,1749690646857,-957.3,0.00019178,2]
[365470803,1749690646866,-426.0,0.00019178,2]
[365470804,1749690646875,-490.0,0.00019178,2]
[365470805,1749690646884,-422.40828688,0.00019178,2]
[365470806,1749690646892,-4343.6,0.00019178,2]
[365470807,1749690646902,-273.42137,0.00019178,2]
[365470808,1749690646912,-490.0,0.00019178,2]
[365470809,1749690646924,-1327.54,0.00019178,2]
[365470810,1749690646933,-1191.6,0.00019178,2]
[365470811,1749690646942,-555.78,0.00019178,2]
[365470812,1749690646950,-490.0,0.00019178,2]
[365470813,1749690646959,-490.0,0.00019178,2]
[365470814,1749690646968,-2709.14,0.00019178,2]
[365470815,1749690646977,-490.0,0.00019178,2]
[365470816,1749690646986,-557.67,0.00019178,2]
[365470817,1749690646995,-273.42137,0.00019178,2]
[365470818,1749690647004,-490.0,0.00019178,2]
[365470819,1749690647013,-706.55,0.00019178,2]
[365470820,1749690647023,-200.0,0.00019178,2]
[365470821,1749690647036,-4344.65,0.00019178,2]
[365470822,1749690647045,-1617.0,0.00019178,2]
[365470823,1749690647054,-2713.75,0.00019178,2]
[365470824,1749690647063,-480.0,0.00019178,2]
[365470825,1749690647073,-480.0,0.00019178,2]
[365470826,1749690647083,-387.67025794,0.00019178,2]
[365470827,1749690647092,-490.0,0.00019178,2]
[365470828,1749690647102,-549.31,0.00019178,2]
[365470829,1749690647112,-815.2,0.00019178,2]
[365470830,1749690647121,-490.0,0.00019178,2]
[365470831,1749690647137,-765.99,0.00019178,2]
[365470832,1749690647147,-155.62260045,0.00019178,2]
[365470833,1749690647157,-480.0,0.00019178,2]
[365470834,1749690647166,-490.0,0.00019178,2]
[365470835,1749690647175,-858.85,0.00019178,2]
[365470836,1749690647186,-480.0,0.00019178,2]
[365470837,1749690647196,-200.0,0.00019178,2]
[365470838,1749690647205,-150.0,0.00019178,2]
[365470839,1749690647214,-490.0,0.00019178,2]
[365470840,1749690647223,-480.0,0.00019178,2]
[365470841,1749690647232,-490.0,0.00019178,2]
[365470842,1749690647241,-490.0,0.00019178,2]
[365470843,1749690647250,-490.0,0.00019178,2]
[365470844,1749690647259,-150.0,0.00019178,2]
[365470845,1749690647268,-490.0,0.00019178,2]
[365470846,1749690647277,-695.38,0.00019178,2]
[365470847,1749690647286,-490.0,0.00019178,2]
[365470848,1749690647296,-582.06,0.00019178,2]
[365470849,1749690647305,-490.0,0.00019178,2]
[365470850,1749690647314,-775.35,0.00019178,2]
[365470851,1749690647323,-1714.0,0.00019178,2]
[365470852,1749690647332,-1966.64,0.00019178,2]
[365470853,1749690647341,-1966.64,0.00019178,2]
[365470854,1749690647350,-1966.64,0.00019178,2]
[365470855,1749690647359,-16514.17,0.00019178,2]
[365470856,1749690647368,-490.0,0.00019178,2]
[365470857,1749690647377,-474.0,0.00019178,2]
[365470858,1749690647386,-490.0,0.00019178,2]
[365470859,1749690647396,-480.0,0.00019178,2]
[365470860,1749690647405,-551.41,0.00019178,2]
[365470861,1749690647414,-490.0,0.00019178,2]
[365470862,1749690647423,-940.06,0.00019178,2]
[365470863,1749690647432,-151.0,0.00019178,2]
[365470864,1749690647441,-2292.03,0.00019178,2]
[365470865,1749690647450,-704.26,0.00019178,2]
[365470866,1749690647459,-1984.58,0.00019178,2]
[365470867,1749690647468,-500.0,0.00019178,2]
[365470868,1749690647477,-12735.49,0.00019178,2]
[365470869,1749690647485,-490.0,0.00019178,2]
[365470870,1749690647494,-151.0,0.00019178,2]
[365470871,1749690647504,-490.0,0.00019178,2]
[365470872,1749690647513,-688.81,0.00019178,2]
[365470873,1749690647522,-1752.25,0.00019178,2]
[365470874,1749690647531,-2405.8,0.00019178,2]
[365470875,1749690647539,-599.97651656,0.00019178,2]
[365470876,1749690647548,-490.0,0.00019178,2]
[365470877,1749690647557,-2654.76,0.00019178,2]
[365470878,1749690647566,-1037.74,0.00019178,2]
[365470879,1749690647575,-694.38,0.00019178,2]
[365470880,1749690647584,-490.0,0.00019178,2]
[365470881,1749690647594,-500.0,0.00019178,2]
[365470882,1749690647603,-500.0,0.00019178,2]
[365470883,1749690647613,-682.37,0.00019178,2]
[365470884,1749690647622,-5355.82,0.00019178,2]
[365470885,1749690647631,-490.0,0.00019178,2]
[365470886,1749690647641,-702.9,0.00019178,2]
[365470887,1749690647650,-1685.15,0.00019178,2]
[365470888,1749690647660,-882.39,0.00019178,2]
[365470889,1749690647670,-490.0,0.00019178,2]
[365470890,1749690647679,-1217.22,0.00019178,2]
[365470891,1749690647688,-490.0,0.00019178,2]
[365470892,1749690647698,-490.0,0.00019178,2]
[365470893,1749690647707,-1908.77,0.00019178,2]
[365470894,1749690647716,-2152.76,0.00019178,2]
[365470895,1749690647724,-3198.53,0.00019178,2]
[365470896,1749690647734,-480.0,0.00019178,2]
[365470897,1749690647743,-490.0,0.00019178,2]
[365470898,1749690647751,-480.0,0.00019178,2]
[365470899,1749690647760,-4659.4,0.00019178,2]
[365470900,1749690647769,-490.0,0.00019178,2]
[365470901,1749690647779,-480.0,0.00019178,2]
[365470902,1749690647788,-490.0,0.00019178,2]
[365470903,1749690647797,-480.0,0.00019178,2]
[365470904,1749690647806,-480.0,0.00019178,2]
[365470905,1749690647815,-757.53,0.00019178,2]
[365470906,1749690647824,-490.0,0.00019178,2]
[365470907,1749690647833,-480.0,0.00019178,2]
[365470908,1749690647842,-5528.46,0.00019178,2]
[365470909,1749690647851,-920.03,0.00019178,2]
[365470910,1749690647860,-481.7728298,0.00019178,2]
[365470911,1749690647868,-1426.74,0.00019178,2]
[365470912,1749690647877,-490.0,0.00019178,2]
[365470913,1749690647886,-490.0,0.00019178,2]
[365470914,1749690647895,-1007.45,0.00019178,2]
[365470915,1749690647905,-490.0,0.00019178,2]
[365470916,1749690647915,-480.0,0.00019178,2]
[365470917,1749690647923,-490.0,0.00019178,2]
[365470918,1749690647932,-490.0,0.00019178,2]
[365470919,1749690647941,-424.04793067,0.00019178,2]
[365470920,1749690647950,-610.7,0.00019178,2]
[365470921,1749690647959,-1271.05,0.00019178,2]
[365470922,1749690647968,-151.0,0.00019178,2]
[365470923,1749690647977,-302.8,0.00019178,2]
[365470924,1749690647986,-172.86,0.00019178,2]
[365470925,1749690647995,-155.89872915,0.00019181,2]
[365470926,1749690648004,-500.0,0.00019187,2]
[365470927,1749690648013,-200.0,0.00019187,2]
[365470928,1749690648022,-473.563483,0.00019192,2]
[365470929,1749690648036,-473.563483,0.00019192,2]
[365470930,1749690648048,-1546.003888,0.00019192,2]
[365470931,1749690648057,-1546.003888,0.00019192,2]
[365470932,1749690648067,-962.952947,0.00019192,2]
[365470933,1749690648075,-962.952947,0.00019192,2]
[365470934,1749690648086,-1376.0954,0.00019192,2]
[365470935,1749690648096,-1376.0954,0.00019192,2]
[365470936,1749690648105,-151.0,0.00019192,2]
[365470937,1749690648114,-211.140593,0.00019192,2]
[365470938,1749690648123,-239.557682,0.00019192,2]
[365470939,1749690648133,-239.557682,0.00019192,2]
[365470940,1749690648142,-185.766995,0.00019192,2]
[365470941,1749690648151,-185.766995,0.00019192,2]
[365470942,1749690648161,-151.0,0.00019192,2]
[365470943,1749690648170,-151.0,0.00019192,2]
[365470944,1749690648179,-627.262249,0.00019192,2]
[365470945,1749690648188,-627.262249,0.00019192,2]
[365470946,1749690648198,-329.463702,0.00019192,2]
[365470947,1749690648210,-329.463702,0.00019192,2]
[365470948,1749690648222,-361.56425,0.00019192,2]
[365470949,1749690648232,-361.56425,0.00019192,2]
[365470950,1749690648241,-151.0,0.00019192,2]
[365470951,1749690648250,-151.0,0.00019192,2]
[365470952,1749690648259,-478.000233,0.00019192,2]
[365470953,1749690648268,-478.000233,0.00019192,2]
[365470954,1749690648277,-151.0,0.00019192,2]
[365470955,1749690648287,-151.0,0.00019192,2]
[365470956,1749690648296,-1683.638151,0.00019192,2]
[365470957,1749690648306,-151.0,0.00019192,2]
[365470958,1749690648315,-1683.638151,0.00019192,2]
[365470959,1749690648325,-500.0,0.00019205,2]
[365470960,1749690648335,-500.0,0.00019205,2]
[365470961,1749690648348,-500.0,0.00019205,2]
[365470962,1749690648358,-500.0,0.00019205,2]
[365470963,1749690648367,-150.0,0.00019205,2]
[365470964,1749690648377,-500.0,0.00019205,2]
[365470965,1749690648386,-150.0,0.00019205,2]
[365470966,1749690648396,-416.0,0.00019205,3]
[365470967,1749690648405,-150.0,0.00019205,2]
[365470968,1749690648414,-150.0,0.00019205,2]
[365470969,1749690648423,-426.0,0.00019205,2]
[365470970,1749690648432,-1617.0,0.00019205,2]
[365470971,1749690648441,-150.0,0.00019205,2]
[365470972,1749690648450,-474.0,0.00019205,2]
[365470973,1749690648459,-375.0,0.00019205,2]
[365470974,1749690648469,-155.89872915,0.00019211,2]
[365470975,1749690648478,-2480.6463339,0.00019216,2]
[365470976,1749690648487,-578.63680743,0.00019233,2]
[365470977,1749690648497,-500.0,0.00019233,2]
[365470978,1749690648506,-500.0,0.00019233,2]
[365470979,1749690648516,-547.04418347,0.00019233,2]
[365470980,1749690648525,-150.0,0.00019233,2]
[365470981,1749690648534,-500.0,0.00019233,2]
[365470982,1749690648543,-416.0,0.00019233,3]
[365470983,1749690648552,-200.0,0.00019233,2]
[365470984,1749690648562,-150.0,0.00019233,2]
[365470985,1749690648571,-426.0,0.00019233,2]
[365470986,1749690648580,-1617.0,0.00019233,2]
[365470987,1749690648590,-150.0,0.00019233,2]
[365470988,1749690648599,-474.0,0.00019233,2]
[365470989,1749690648608,-210.58362287,0.00019233,2]
[365470990,1749690648617,-343.63124031,0.00019238,2]
[365470991,1749690648627,-173.44104996,0.00019239,2]
[365470992,1749690648636,-168.21315282,0.00019242,2]
[365470993,1749690648645,-155.89872915,0.00019242,2]
[365470994,1749690648654,-833.29909032,0.00019257,2]
[365470995,1749690648663,-500.0,0.0001926,2]
[365470996,1749690648673,-500.0,0.0001926,2]
[365470997,1749690648682,-250.87390687,0.0001926,2]
[365470998,1749690648691,-500.0,0.0001926,2]
[365470999,1749690648700,-416.0,0.0001926,3]
[365471000,1749690648780,-150.0,0.0001926,2]
[365471001,1749690648800,-426.0,0.0001926,2]
[365471002,1749690648821,-1617.0,0.0001926,2]
[365471003,1749690648843,-265.82324278,0.0001926,2]
[365471004,1749690648864,-474.0,0.0001926,2]
[365471005,1749690648885,-1361.968,0.00019267,2]
[365471006,1749690648907,-500.0,0.00019288,2]
[365471007,1749690648940,-500.0,0.00019288,2]
[365471008,1749690648961,-535.7252843,0.00019288,2]
[365471009,1749690648982,-416.0,0.00019288,3]
[365471010,1749690649003,-190.02106427,0.00019288,2]
[365471011,1749690649024,-426.0,0.00019288,2]
[365471012,1749690649046,-1617.0,0.00019288,2]
[365471013,1749690649061,-474.0,0.00019288,2]
[365471014,1749690649071,-6764.45639447,0.00019294,2]
[365471015,1749690649080,-641.0,0.000193,2]
[365471016,1749690649088,-48784.60553026,0.000193,2]
[365471017,1749690649553,-1293.16940294,0.000193,2]
[365471018,1749690649564,-1551.41745399,0.000193,2]
[365471019,1749690650179,-490.0,0.00019178,2]
[365471020,1749690650189,-490.0,0.00019178,2]
[365471021,1749690650199,-490.0,0.00019178,2]
[365471022,1749690650209,-2480.6463339,0.0001929,2]
[365471023,1749690650219,-9646.76329792,0.000193,2]
[365471024,1749690650238,-24343.1092651,0.000193,2]
[365471025,1749690650432,-1172.67,0.00019178,2]
[365471026,1749690650441,-1879.27565057,0.000193,2]
[365471027,1749690650452,-1876.84236187,0.000193,2]
[365471028,1749690650503,-2250.34363205,0.000193,2]
[365471029,1749690650514,-4865.86156695,0.000193,2]
[365471030,1749690650525,-409.5121122,0.000193,2]
[365471031,1749690650540,-2035.27478188,0.000193,2]
[365471036,1749691043151,853.18,0.00016355,2]
[365471037,1749691056911,294.31,0.00013699,2]
[365471039,1749691296768,264.0,0.00024657,120]
[365471040,1749691416942,389.92,0.0001792,2]
[365471043,1749691500929,666.0,0.00017952,2]
[365471044,1749691511158,500.0,0.00016384,2]
[365471054,1749691571650,204.0,0.00017169,2]
[365471055,1749691630128,-1310.03708709,0.00018056,2]
[365471056,1749691630149,-32.72156082,0.00018085,2]
[365471057,1749691658803,250.0,0.00017975,2]
[365471058,1749691710603,1000.0,0.00017988,2]
[365471109,1749691730214,-500.0,0.00038221,120]
[365471110,1749691730243,-500.0,0.00038221,120]
[365471111,1749691730272,-500.0,0.00038221,120]
[365471112,1749691730299,-219.01999999,0.00038221,120]
[365471113,1749691730328,-500.0,0.00038221,120]
[365471114,1749691730357,-500.0,0.00038221,120]
[365471115,1749691730382,-200.0,0.00038221,120]
[365471116,1749691730413,-500.0,0.00038221,120]
[365471117,1749691730440,-500.0,0.00038221,120]
[365471118,1749691730469,-500.0,0.00038221,120]
[365471119,1749691730498,-500.0,0.00038221,120]
[365471120,1749691730530,-500.0,0.00038221,120]
[365471121,1749691730560,-500.0,0.00038221,120]
[365471122,1749691730589,-500.0,0.00038221,120]
[365471123,1749691730619,-500.0,0.00038221,120]
[365471124,1749691730647,-535.70000001,0.00038221,120]
[365471125,1749691730673,-200.0,0.00038221,120]
[365471126,1749691730699,-500.0,0.00038221,120]
[365471127,1749691730724,-500.0,0.00038221,120]
[365471128,1749691730751,-500.0,0.00038221,120]
[365471129,1749691730777,-500.0,0.00038221,120]
[365471130,1749691730803,-500.0,0.00038221,120]
[365471131,1749691730830,-500.0,0.00038221,120]
[365471132,1749691730855,-249.84,0.00038221,120]
[365471133,1749691730883,-500.0,0.00038221,120]
[365471134,1749691730910,-500.0,0.00038221,120]
[365471135,1749691730938,-500.0,0.00038221,120]
[365471136,1749691730966,-500.0,0.00038221,120]
[365471137,1749691730993,-500.0,0.00038221,120]
[365471138,1749691731021,-500.0,0.00038221,120]
[365471139,1749691731048,-500.0,0.00038221,120]
[365471140,1749691731076,-500.0,0.00038221,120]
[365471141,1749691731104,-500.0,0.00038221,120]
[365471142,1749691731132,-500.0,0.00038221,120]
[365471143,1749691731161,-500.0,0.00038221,120]
[365471144,1749691731188,-500.0,0.00038221,120]
[365471145,1749691731215,-500.0,0.00038221,120]
[365471146,1749691731243,-199.44,0.00038221,120]
[365471147,1749691731269,-500.0,0.00038221,120]
[365471148,1749691731296,-500.0,0.00038221,120]
[365471149,1749691731323,-470.0,0.00038221,120]
[365471150,1749691731348,-500.0,0.00038221,120]
[365471151,1749691731374,-340.57766113,0.00038221,120]
[365471152,1749691731403,-500.0,0.00038221,120]
[365471153,1749691731435,-500.0,0.00038221,120]
[365471154,1749691731463,-500.0,0.00038221,120]
[365471155,1749691731493,-500.0,0.00038221,120]
[365471156,1749691731523,-500.0,0.00038221,120]
[365471157,1749691731553,-500.0,0.00038221,120]
[365471158,1749691731582,-500.0,0.00038221,120]
[365471159,1749691731610,-500.0,0.00038221,120]
[365471160,1749691731638,-500.0,0.00038221,120]
[365471161,1749691731666,-500.0,0.00038221,120]
[365471162,1749691731694,-500.0,0.00038221,120]
[365471163,1749691731722,-500.0,0.00038221,120]
[365471164,1749691731750,-500.0,0.00038221,120]
[365471165,1749691731779,-500.0,0.00038221,120]
[365471166,1749691731807,-500.0,0.00038221,120]
[365471167,1749691731838,-500.0,0.00038221,120]
[365471168,1749691731867,-500.0,0.00038221,120]
[365471169,1749691731896,-500.0,0.00038221,120]
[365471170,1749691731925,-500.0,0.00038221,120]
[365471171,1749691731954,-500.0,0.00038221,120]
[365471172,1749691731983,-623.63999999,0.00038221,120]
[365471173,1749691732009,-319.93331919,0.00038221,120]
[365471174,1749691732035,-574.13361885,0.00038221,120]
[365471175,1749691732064,-321.65116895,0.00038221,120]
[365471176,1749691732090,-28229.0,0.00038221,60]
[365471177,1749691732117,-284.746357,0.00038221,120]
[365471178,1749691732143,-433.79451,0.00038221,120]
[365471179,1749691732172,-500.0,0.00038221,120]
[365471180,1749691732202,-500.0,0.00038221,120]
[365471181,1749691732230,-500.0,0.00038221,120]
[365471182,1749691732260,-500.0,0.00038221,120]
[365471183,1749691732288,-500.0,0.00038221,120]
[365471184,1749691732315,-500.0,0.00038221,120]
[365471185,1749691732344,-500.0,0.00038221,120]
[365471186,1749691732372,-500.0,0.00038221,120]
[365471187,1749691732400,-500.0,0.00038221,120]
[365471188,1749691732431,-500.0,0.00038221,120]
[365471189,1749691732459,-500.0,0.00038221,120]
[365471190,1749691732492,-500.0,0.00038221,120]
[365471191,1749691732520,-500.0,0.00038221,120]
[365471192,1749691732549,-500.0,0.00038221,120]
[365471193,1749691732578,-500.0,0.00038221,120]
[365471194,1749691732606,-500.0,0.00038221,120]
[365471195,1749691732634,-500.0,0.00038221,120]
[365471196,1749691732662,-500.0,0.00038221,120]
[365471197,1749691732690,-500.0,0.00038221,120]
[365471198,1749691732968,-500.0,0.00038221,120]
[365471199,1749691732996,-500.0,0.00038221,120]
[365471200,1749691733025,-500.0,0.00038221,120]
[365471201,1749691733053,-584.77,0.00038221,120]
[365471202,1749691733081,-500.0,0.00038221,120]
[365471203,1749691733108,-500.0,0.00038221,120]
[365471204,1749691733135,-500.0,0.00038221,120]
[365471205,1749691733162,-500.0,0.00038221,120]
[365471206,1749691733188,-500.0,0.00038221,120]
[365471207,1749691733215,-500.0,0.00038221,120]
[365471208,1749691733242,-500.0,0.00038221,120]
[365471209,1749691733269,-500.0,0.00038221,120]
[365471210,1749691733297,-500.0,0.00038221,120]
[365471211,1749691733324,-500.0,0.00038221,120]
[365471212,1749691733352,-500.0,0.00038221,120]
[365471213,1749691733383,-500.0,0.00038221,120]
[365471214,1749691733414,-500.0,0.00038221,120]
[365471215,1749691733442,-500.0,0.00038221,120]
[365471216,1749691733471,-500.0,0.00038221,120]
[365471217,1749691733499,-500.0,0.00038221,120]
[365471218,1749691733527,-500.0,0.00038221,120]
[365471219,1749691733556,-500.0,0.00038221,120]
[365471220,1749691733587,-500.0,0.00038221,120]
[365471221,1749691733617,-500.0,0.00038221,120]
[365471222,1749691733645,-500.0,0.00038221,120]
[365471223,1749691733674,-601.8,0.00038221,120]
[365471224,1749691733703,-500.0,0.00038221,120]
[365471225,1749691733732,-500.0,0.00038221,120]
[365471226,1749691733760,-500.0,0.00038221,120]
[365471227,1749691733789,-500.0,0.00038221,120]
[365471228,1749691733815,-35656.12,0.00038221,60]
[365471229,1749691733841,-1236.0,0.00038221,90]
[365471230,1749691733867,-556.28422668,0.00038221,120]
[365471231,1749691733893,-365.0,0.00038221,120]
[365471232,1749691733918,-595.87039255,0.00038221,120]
[365471233,1749691733943,-500.0,0.00038221,120]
[365471234,1749691733968,-367.81,0.00038221,120]
[365471235,1749691733993,-10000.0,0.00038221,120]
[365471236,1749691734020,-831.65,0.00038221,120]
[365471237,1749691734044,-831.65,0.00038221,120]
[365471238,1749691734070,-831.65,0.00038221,120]
[365471239,1749691734096,-831.65,0.00038221,120]
[365471240,1749691734121,-831.65,0.00038221,120]
[365471241,1749691734147,-831.65,0.00038221,120]
[365471242,1749691734172,-831.65,0.00038221,120]
[365471243,1749691734197,-831.65,0.00038221,120]
[365471244,1749691734222,-831.65,0.00038221,120]
[365471245,1749691734249,-831.65,0.00038221,120]
[365471246,1749691734275,-831.65,0.00038221,120]
[365471247,1749691734301,-831.65,0.00038221,120]
[365471248,1749691734328,-831.65,0.00038221,120]
[365471249,1749691734355,-831.65,0.00038221,120]
[365471250,1749691734383,-831.65,0.00038221,120]
[365471251,1749691734411,-831.65,0.00038221,120]
[365471252,1749691734438,-831.65,0.00038221,120]
[365471253,1749691734465,-831.65,0.00038221,120]
[365471254,1749691734492,-831.65,0.00038221,120]
[365471255,1749691734520,-831.65,0.00038221,120]
[365471256,1749691734546,-831.65,0.00038221,120]
[365471257,1749691734572,-831.65,0.00038221,120]
[365471258,1749691734600,-831.65,0.00038221,120]
[365471259,1749691734627,-831.70798477,0.00038221,120]
[365471260,1749691734653,-601.32,0.00038221,120]
[365471261,1749691734679,-2000.0,0.00038221,120]
[365471262,1749691734705,-2120.36466801,0.00038221,120]
[365471263,1749691734731,-500.0,0.00038221,120]
[365471264,1749691734759,-500.0,0.00038221,120]
[365471265,1749691734788,-500.0,0.00038221,120]
[365471266,1749691734816,-500.0,0.00038221,120]
[365471267,1749691734843,-500.0,0.00038221,120]
[365471268,1749691734870,-500.0,0.00038221,120]
[365471269,1749691734897,-500.0,0.00038221,120]
[365471270,1749691734923,-500.0,0.00038221,120]
[365471271,1749691734949,-352.00912685,0.00038221,120]
[365471272,1749691734976,-500.0,0.00038221,120]
[365471273,1749691735001,-500.0,0.00038221,120]
[365471274,1749691735026,-500.0,0.00038221,120]
[365471275,1749691735051,-500.0,0.00038221,120]
[365471276,1749691735076,-500.0,0.00038221,120]
[365471277,1749691735102,-500.0,0.00038221,120]
[365471278,1749691735127,-500.0,0.00038221,120]
[365471279,1749691735153,-500.0,0.00038221,120]
[365471280,1749691735180,-500.0,0.00038221,120]
[365471281,1749691735208,-500.0,0.00038221,120]
[365471282,1749691735235,-500.0,0.00038221,120]
[365471283,1749691735262,-500.0,0.00038221,120]
[365471284,1749691735289,-648.58683407,0.00038221,120]
[365471285,1749691735316,-500.0,0.00038221,120]
[365471286,1749691735342,-500.0,0.00038221,120]
[365471287,1749691735371,-500.0,0.00038221,120]
[365471288,1749691735400,-248.78,0.00038221,120]
[365471289,1749691735431,-300.0,0.00038221,120]
[365471290,1749691735460,-300.0,0.00038221,120]
[365471291,1749691735488,-500.0,0.00038221,120]
[365471292,1749691735518,-542.03321202,0.00038221,120]
[365471293,1749691735747,-500.0,0.00038221,120]
[365471294,1749691735776,-500.0,0.00038221,120]
[365471295,1749691735804,-500.0,0.00038221,120]
[365471296,1749691735832,-500.0,0.00038221,120]
[365471297,1749691735859,-500.0,0.00038221,120]
[365471298,1749691735886,-500.0,0.00038221,120]
[365471299,1749691735914,-500.0,0.00038221,120]
[365471300,1749691735941,-245.17991328,0.00038221,120]
[365471301,1749691735968,-500.0,0.00038221,120]
[365471302,1749691735994,-480.0,0.00038221,120]
[365471303,1749691736021,-500.0,0.00038221,120]
[365471304,1749691736049,-480.0,0.00038221,120]
[365471305,1749691736076,-443.3598405,0.00038221,120]
[365471306,1749691736103,-240.71727787,0.00038221,120]
[365471307,1749691736129,-158.0,0.00038221,120]
[365471308,1749691736155,-180.51392661,0.00038221,120]
[365471309,1749691736190,-13316.18724697,0.00038221,120]
[365471310,1749691736242,-4848.25067668,0.00038221,120]
[365471317,1749691742823,20238.62,0.00038221,120]
[365471318,1749691743081,20238.62,0.00038221,120]
[365471319,1749691743391,20238.62,0.00038221,120]
[365471320,1749691743768,20238.62,0.00038221,120]
[365471321,1749691744052,20238.62,0.00038221,120]
[365471322,1749691744299,20238.62,0.00038221,120]
[365471323,1749691744942,20238.62,0.00038221,120]
[365471324,1749691745215,20238.62,0.00038221,120]
[365471325,1749691745477,20238.62,0.00038221,120]
[365471326,1749691745713,20238.62,0.00038221,120]
[365471327,1749691746064,20238.62,0.00038221,120]
[365471328,1749691746452,20238.62,0.00038221,120]
[365471329,1749691746767,20238.62,0.00038221,120]
[365471330,1749691747625,20238.62,0.00038221,120]
[365471331,1749691747680,20238.62,0.00038221,120]
[365471332,1749691747733,20238.62,0.00038221,120]
[365471333,1749691747792,20238.62,0.00038221,120]
[365471334,1749691748033,20238.62,0.00038221,120]
[365471335,1749691748306,20238.62,0.00038221,120]
[365471336,1749691748611,20238.62,0.00038221,120]
[365471337,1749691748918,20238.62,0.00038221,120]
[365471338,1749691749154,20238.62,0.00038221,120]
[365471339,1749691749455,20238.62,0.00038221,120]
[365471340,1749691749724,20238.77451759,0.00038221,120]
[365471341,1749691764762,500.0,0.00038221,120]
[365471342,1749691765003,500.0,0.00038221,120]
[365471343,1749691765257,319.93331919,0.00038221,120]
[365471345,1749691803128,2723.0,0.00038223,120]
[365471346,1749691819469,1025.32187486,0.00038223,120]